fUST/lending_fUST_20250709
["ID","MTS","AMOUNT","RATE_DAILY","PERIOD"]
[370430168,1752016254556,-460.0,0.0002,2]
[370430169,1752016254565,-151.0,0.0002,2]
[370430170,1752016254575,-460.0,0.0002,2]
[370430171,1752016254584,-460.0,0.0002,2]
[370430172,1752016254593,-460.0,0.0002,2]
[370430173,1752016254602,-460.0,0.0002,2]
[370430174,1752016254612,-460.0,0.0002,2]
[370430175,1752016254621,-151.0,0.0002,2]
[370430176,1752016254631,-460.0,0.0002,2]
[370430177,1752016254640,-589.2989358,0.0002,2]
[370430178,1752016254650,-223.08476342,0.0002,2]
[370430179,1752016254659,-460.0,0.0002,2]
[370430180,1752016254668,-460.0,0.0002,2]
[370430181,1752016254679,-460.0,0.0002,2]
[370430182,1752016254688,-460.0,0.0002,2]
[370430183,1752016254698,-441.36021163,0.0002,2]
[370430184,1752016254708,-460.0,0.0002,2]
[370430185,1752016254717,-460.0,0.0002,2]
[370430186,1752016254726,-460.0,0.0002,2]
[370430187,1752016254735,-460.0,0.0002,2]
[370430188,1752016254745,-460.0,0.0002,2]
[370430189,1752016254754,-460.0,0.0002,2]
[370430190,1752016254764,-460.0,0.0002,2]
[370430191,1752016254774,-460.0,0.0002,2]
[370430192,1752016254783,-500.0,0.0002,2]
[370430193,1752016254792,-707.11,0.0002,2]
[370430194,1752016254802,-163.6692967,0.0002,2]
[370430195,1752016254811,-460.0,0.0002,2]
[370430196,1752016254821,-460.0,0.0002,2]
[370430197,1752016254830,-151.0,0.0002,2]
[370430198,1752016254840,-404.73949645,0.0002,2]
[370430199,1752016254850,-460.0,0.0002,2]
[370430200,1752016254859,-460.0,0.0002,2]
[370430201,1752016254868,-757.590677,0.0002,2]
[370430202,1752016254878,-460.0,0.0002,2]
[370430203,1752016254887,-460.0,0.0002,2]
[370430204,1752016254897,-757.590677,0.0002,2]
[370430205,1752016254906,-460.0,0.0002,2]
[370430206,1752016254916,-460.0,0.0002,2]
[370430207,1752016254926,-460.0,0.0002,2]
[370430208,1752016254935,-460.0,0.0002,2]
[370430209,1752016254945,-460.0,0.0002,2]
[370430210,1752016254954,-460.0,0.0002,2]
[370430211,1752016254964,-172.494114,0.0002,2]
[370430212,1752016254974,-1978.77,0.0002,2]
[370430213,1752016254983,-460.0,0.0002,2]
[370430214,1752016254992,-151.0,0.0002,2]
[370430215,1752016255001,-172.494114,0.0002,2]
[370430216,1752016255010,-460.0,0.0002,2]
[370430217,1752016255020,-460.0,0.0002,2]
[370430218,1752016255029,-3737.24,0.0002,2]
[370430219,1752016255038,-469.10159919,0.0002,2]
[370430220,1752016255048,-460.0,0.0002,2]
[370430221,1752016255057,-460.0,0.0002,2]
[370430222,1752016255067,-460.0,0.0002,2]
[370430223,1752016255076,-460.0,0.0002,2]
[370430224,1752016255085,-460.0,0.0002,2]
[370430225,1752016255095,-1049.6,0.0002,2]
[370430226,1752016255104,-460.0,0.0002,2]
[370430227,1752016255114,-979.0,0.0002,2]
[370430228,1752016255123,-201.03521453,0.0002,2]
[370430229,1752016255132,-460.0,0.0002,2]
[370430230,1752016255142,-460.0,0.0002,2]
[370430231,1752016255151,-460.0,0.0002,2]
[370430232,1752016255161,-460.0,0.0002,2]
[370430233,1752016255170,-460.0,0.0002,2]
[370430234,1752016255180,-460.0,0.0002,2]
[370430235,1752016255189,-460.0,0.0002,2]
[370430236,1752016255199,-327.21317567,0.0002,2]
[370430237,1752016255209,-460.0,0.0002,2]
[370430238,1752016255218,-595.54,0.0002,2]
[370430239,1752016255227,-1208.7,0.0002,2]
[370430240,1752016255237,-460.0,0.0002,2]
[370430241,1752016255246,-460.0,0.0002,2]
[370430242,1752016255256,-460.0,0.0002,2]
[370430243,1752016255268,-460.0,0.0002,2]
[370430244,1752016255278,-2762.92,0.0002,2]
[370430245,1752016255287,-1829.3,0.0002,2]
[370430246,1752016255297,-160.0,0.0002,3]
[370430247,1752016255306,-460.0,0.0002,2]
[370430248,1752016255320,-460.0,0.0002,2]
[370430249,1752016255330,-510.12327461,0.0002,2]
[370430250,1752016255339,-500.0,0.0002,2]
[370430251,1752016255348,-490.6,0.0002,2]
[370430252,1752016255360,-460.0,0.0002,2]
[370430253,1752016255369,-460.0,0.0002,2]
[370430254,1752016255485,-460.0,0.0002,2]
[370430255,1752016255495,-460.0,0.0002,2]
[370430256,1752016255505,-460.0,0.0002,2]
[370430257,1752016255515,-460.0,0.0002,2]
[370430258,1752016255525,-460.0,0.0002,2]
[370430259,1752016255535,-460.0,0.0002,2]
[370430260,1752016255545,-460.0,0.0002,2]
[370430261,1752016255554,-460.0,0.0002,2]
[370430262,1752016255564,-613.94,0.0002,2]
[370430263,1752016255575,-460.0,0.0002,2]
[370430264,1752016255584,-1198.17,0.0002,2]
[370430265,1752016255594,-460.0,0.0002,2]
[370430266,1752016255604,-460.0,0.0002,2]
[370430267,1752016255615,-460.0,0.0002,2]
[370430268,1752016255624,-460.0,0.0002,2]
[370430269,1752016255633,-460.0,0.0002,2]
[370430270,1752016255643,-460.0,0.0002,2]
[370430271,1752016255653,-876.27,0.0002,2]
[370430272,1752016255663,-698.91,0.0002,2]
[370430273,1752016255672,-460.0,0.0002,2]
[370430274,1752016255682,-460.0,0.0002,2]
[370430275,1752016255692,-3546.81,0.0002,2]
[370430276,1752016255702,-2160.36,0.0002,2]
[370430277,1752016255711,-460.0,0.0002,2]
[370430278,1752016255721,-460.0,0.0002,2]
[370430279,1752016255730,-460.0,0.0002,2]
[370430280,1752016255740,-460.0,0.0002,2]
[370430281,1752016255749,-460.0,0.0002,2]
[370430282,1752016255759,-460.0,0.0002,2]
[370430283,1752016255768,-460.0,0.0002,2]
[370430284,1752016255777,-562.12,0.0002,2]
[370430285,1752016255787,-1820.93,0.0002,2]
[370430286,1752016255796,-2481.76,0.0002,2]
[370430287,1752016255806,-801.89,0.0002,2]
[370430289,1752016255815,-503.34130895,0.0002,2]
[370430291,1752016255825,-660.88,0.0002,2]
[370430293,1752016255835,-780.51,0.0002,2]
[370430295,1752016255844,-926.47,0.0002,2]
[370430297,1752016255854,-460.0,0.0002,2]
[370430299,1752016255863,-460.0,0.0002,2]
[370430300,1752016255872,-487.54,0.0002,2]
[370430301,1752016255882,-460.0,0.0002,2]
[370430302,1752016255891,-460.0,0.0002,2]
[370430303,1752016255900,-460.0,0.0002,2]
[370430304,1752016255910,-460.0,0.0002,2]
[370430305,1752016255920,-460.0,0.0002,2]
[370430306,1752016255929,-460.0,0.0002,2]
[370430308,1752016255939,-200.0,0.0002,2]
[370430310,1752016255949,-551.01435286,0.0002,2]
[370430311,1752016255958,-460.0,0.0002,2]
[370430313,1752016255968,-460.0,0.0002,2]
[370430315,1752016255977,-460.0,0.0002,2]
[370430317,1752016255986,-460.0,0.0002,2]
[370430319,1752016255995,-460.0,0.0002,2]
[370430321,1752016256005,-151.0,0.0002,2]
[370430323,1752016256015,-151.0,0.0002,2]
[370430325,1752016256024,-460.0,0.0002,2]
[370430327,1752016256034,-1249.85,0.0002,2]
[370430329,1752016256043,-460.0,0.0002,2]
[370430331,1752016256052,-460.0,0.0002,2]
[370430333,1752016256062,-654.86,0.0002,2]
[370430334,1752016256071,-460.0,0.0002,2]
[370430335,1752016256081,-1707.37,0.0002,2]
[370430336,1752016256090,-460.0,0.0002,2]
[370430337,1752016256100,-351.23943239,0.0002,2]
[370430338,1752016256109,-460.0,0.0002,2]
[370430339,1752016256118,-460.0,0.0002,2]
[370430340,1752016256128,-460.0,0.0002,2]
[370430341,1752016256137,-460.0,0.0002,2]
[370430342,1752016256147,-671.3,0.0002,2]
[370430343,1752016256156,-460.0,0.0002,2]
[370430344,1752016256167,-460.0,0.0002,2]
[370430345,1752016256177,-500.0,0.0002,2]
[370430346,1752016256186,-460.0,0.0002,2]
[370430347,1752016256196,-1353.97,0.0002,2]
[370430348,1752016256205,-460.0,0.0002,2]
[370430349,1752016256215,-460.0,0.0002,2]
[370430350,1752016256224,-460.0,0.0002,2]
[370430351,1752016256234,-460.0,0.0002,2]
[370430352,1752016256244,-460.0,0.0002,2]
[370430353,1752016256253,-460.0,0.0002,2]
[370430354,1752016256262,-460.0,0.0002,2]
[370430355,1752016256272,-460.0,0.0002,2]
[370430356,1752016256281,-460.0,0.0002,2]
[370430357,1752016256291,-1191.42,0.0002,2]
[370430358,1752016256300,-460.0,0.0002,2]
[370430359,1752016256310,-460.0,0.0002,2]
[370430360,1752016256322,-460.0,0.0002,2]
[370430361,1752016256331,-462.56,0.0002,2]
[370430362,1752016256341,-558.02,0.0002,2]
[370430363,1752016256350,-460.0,0.0002,2]
[370430364,1752016256361,-460.0,0.0002,2]
[370430365,1752016256370,-460.0,0.0002,2]
[370430366,1752016256380,-460.0,0.0002,2]
[370430367,1752016256390,-460.0,0.0002,2]
[370430368,1752016256400,-460.0,0.0002,2]
[370430369,1752016256410,-460.0,0.0002,2]
[370430370,1752016256420,-460.0,0.0002,2]
[370430371,1752016256430,-460.0,0.0002,2]
[370430372,1752016256440,-460.0,0.0002,2]
[370430373,1752016256450,-460.0,0.0002,2]
[370430374,1752016256459,-460.0,0.0002,2]
[370430375,1752016256470,-500.0,0.00020021,2]
[370430376,1752016256479,-1000.0,0.00020021,2]
[370430377,1752016256489,-1000.0,0.00020021,2]
[370430378,1752016256498,-1000.0,0.00020021,2]
[370430379,1752016256508,-1000.0,0.00020021,2]
[370430380,1752016256518,-501.55669578,0.00020021,2]
[370430381,1752016256528,-814.5323604,0.00020021,2]
[370430382,1752016256538,-1000.0,0.00020021,2]
[370430383,1752016256547,-1000.0,0.00020021,2]
[370430384,1752016256556,-356.04404209,0.00020021,2]
[370430385,1752016256565,-491.04253568,0.00020021,2]
[370430386,1752016256574,-828.22200964,0.00020041,2]
[370430387,1752016256584,-858.86622399,0.00020096,2]
[370430388,1752016256594,-151.0,0.000201,4]
[370430389,1752016256604,-5113.51077367,0.00020107,2]
[370430390,1752016256613,-151.0,0.00020107,2]
[370430391,1752016256623,-151.0,0.00020107,2]
[370430392,1752016256632,-200.00227428,0.00020151,2]
[370430393,1752016256642,-725.0,0.00020175,2]
[370430394,1752016256651,-627.696704,0.00020187,2]
[370430395,1752016256661,-151.0,0.000202,3]
[370430396,1752016256671,-460.0,0.00020273,2]
[370430397,1752016256681,-460.0,0.00020273,2]
[370430398,1752016256690,-460.0,0.00020273,2]
[370430399,1752016256700,-460.0,0.00020273,2]
[370430400,1752016256709,-460.0,0.00020273,2]
[370430401,1752016256719,-151.0,0.00020273,2]
[370430402,1752016256728,-151.0,0.00020273,2]
[370430403,1752016256737,-310.71229955,0.00020273,2]
[370430404,1752016256747,-460.0,0.00020273,2]
[370430405,1752016256756,-460.0,0.00020273,2]
[370430406,1752016256766,-460.0,0.00020273,2]
[370430407,1752016256775,-460.0,0.00020273,2]
[370430408,1752016256784,-460.0,0.00020273,2]
[370430409,1752016256793,-460.0,0.00020273,2]
[370430410,1752016256803,-460.0,0.00020273,2]
[370430411,1752016256812,-460.0,0.00020273,2]
[370430412,1752016256821,-460.0,0.00020273,2]
[370430413,1752016256830,-460.0,0.00020273,2]
[370430414,1752016256840,-460.0,0.00020273,2]
[370430415,1752016256849,-460.0,0.00020273,2]
[370430416,1752016256859,-460.0,0.00020273,2]
[370430417,1752016256868,-460.0,0.00020273,2]
[370430418,1752016256877,-495.97,0.00020273,2]
[370430419,1752016256887,-460.0,0.00020273,2]
[370430420,1752016256896,-503.92,0.00020273,2]
[370430421,1752016256906,-460.0,0.00020273,2]
[370430422,1752016256915,-370.0,0.00020273,2]
[370430423,1752016256924,-460.0,0.00020273,2]
[370430424,1752016256933,-460.0,0.00020273,2]
[370430425,1752016256943,-534.19152515,0.00020273,2]
[370430426,1752016256952,-460.0,0.00020273,2]
[370430427,1752016256962,-512.36,0.00020273,2]
[370430428,1752016256971,-591.71,0.00020273,2]
[370430429,1752016256980,-460.0,0.00020273,2]
[370430430,1752016256990,-460.0,0.00020273,2]
[370430431,1752016257000,-460.0,0.00020273,2]
[370430432,1752016257009,-460.0,0.00020273,2]
[370430433,1752016257019,-460.0,0.00020273,2]
[370430434,1752016257028,-607.78,0.00020273,2]
[370430435,1752016257037,-460.0,0.00020273,2]
[370430436,1752016257047,-151.0,0.00020273,2]
[370430437,1752016257057,-460.0,0.00020273,2]
[370430438,1752016257067,-460.0,0.00020273,2]
[370430439,1752016257076,-460.0,0.00020273,2]
[370430440,1752016257085,-328.76327057,0.00020273,2]
[370430441,1752016257095,-460.0,0.00020273,2]
[370430442,1752016257104,-460.0,0.00020273,2]
[370430443,1752016257114,-188.123731,0.00020273,2]
[370430444,1752016257123,-460.0,0.00020273,2]
[370430445,1752016257133,-460.0,0.00020273,2]
[370430446,1752016257142,-151.0,0.00020273,2]
[370430447,1752016257152,-151.0,0.00020273,2]
[370430448,1752016257162,-460.0,0.00020273,2]
[370430449,1752016257172,-460.0,0.00020273,2]
[370430450,1752016257181,-568.15668715,0.00020273,2]
[370430451,1752016257190,-151.0,0.00020273,2]
[370430452,1752016257200,-483.74377633,0.00020273,2]
[370430453,1752016257212,-460.0,0.00020273,2]
[370430454,1752016257221,-460.0,0.00020273,2]
[370430455,1752016257231,-460.0,0.00020273,2]
[370430456,1752016257241,-564.19,0.00020273,2]
[370430457,1752016257250,-460.0,0.00020273,2]
[370430458,1752016257260,-460.0,0.00020273,2]
[370430459,1752016257269,-460.0,0.00020273,2]
[370430460,1752016257279,-538.23191412,0.00020273,2]
[370430461,1752016257291,-460.0,0.00020273,2]
[370430462,1752016257301,-460.0,0.00020273,2]
[370430463,1752016257312,-460.0,0.00020273,2]
[370430464,1752016257422,-460.0,0.00020273,2]
[370430465,1752016257432,-460.0,0.00020273,2]
[370430466,1752016257442,-460.0,0.00020273,2]
[370430467,1752016257452,-471.80231327,0.00020273,2]
[370430468,1752016257462,-509.10880088,0.00020273,2]
[370430469,1752016257472,-460.0,0.00020273,2]
[370430470,1752016257482,-460.0,0.00020273,2]
[370430471,1752016257492,-502.62,0.00020273,2]
[370430472,1752016257502,-707.11,0.00020273,2]
[370430473,1752016257512,-460.0,0.00020273,2]
[370430474,1752016257521,-416.38178185,0.00020273,2]
[370430475,1752016257531,-151.0,0.00020273,2]
[370430476,1752016257541,-319.84061839,0.00020273,2]
[370430477,1752016257550,-460.0,0.00020273,2]
[370430478,1752016257560,-460.0,0.00020273,2]
[370430479,1752016257569,-217.23135587,0.00020273,2]
[370430480,1752016257578,-460.0,0.00020273,2]
[370430481,1752016257588,-460.0,0.00020273,2]
[370430482,1752016257597,-460.0,0.00020273,2]
[370430483,1752016257606,-460.0,0.00020273,2]
[370430484,1752016257616,-460.0,0.00020273,2]
[370430485,1752016257626,-460.0,0.00020273,2]
[370430486,1752016257635,-1978.77,0.00020273,2]
[370430487,1752016257644,-460.0,0.00020273,2]
[370430488,1752016257654,-151.0,0.00020273,2]
[370430489,1752016257664,-460.0,0.00020273,2]
[370430490,1752016257673,-460.0,0.00020273,2]
[370430491,1752016257683,-3737.24,0.00020273,2]
[370430492,1752016257692,-151.0,0.00020273,2]
[370430493,1752016257701,-460.0,0.00020273,2]
[370430494,1752016257711,-460.0,0.00020273,2]
[370430495,1752016257720,-460.0,0.00020273,2]
[370430496,1752016257729,-460.0,0.00020273,2]
[370430497,1752016257739,-460.0,0.00020273,2]
[370430498,1752016257748,-1049.6,0.00020273,2]
[370430499,1752016257757,-460.0,0.00020273,2]
[370430500,1752016257767,-979.0,0.00020273,2]
[370430501,1752016257776,-460.0,0.00020273,2]
[370430502,1752016257786,-460.0,0.00020273,2]
[370430503,1752016257795,-460.0,0.00020273,2]
[370430504,1752016257805,-460.0,0.00020273,2]
[370430505,1752016257814,-460.0,0.00020273,2]
[370430506,1752016257823,-460.0,0.00020273,2]
[370430507,1752016257832,-460.0,0.00020273,2]
[370430508,1752016257841,-460.0,0.00020273,2]
[370430509,1752016257851,-595.54,0.00020273,2]
[370430510,1752016257860,-1208.7,0.00020273,2]
[370430511,1752016257870,-460.0,0.00020273,2]
[370430512,1752016257879,-460.0,0.00020273,2]
[370430513,1752016257888,-460.0,0.00020273,2]
[370430514,1752016257898,-2762.92,0.00020273,2]
[370430515,1752016257907,-1829.3,0.00020273,2]
[370430516,1752016257917,-460.0,0.00020273,2]
[370430517,1752016257926,-460.0,0.00020273,2]
[370430518,1752016257935,-490.6,0.00020273,2]
[370430519,1752016257945,-151.0,0.00020273,2]
[370430520,1752016257954,-460.0,0.00020273,2]
[370430521,1752016257963,-460.0,0.00020273,2]
[370430522,1752016257972,-460.0,0.00020273,2]
[370430523,1752016257981,-460.0,0.00020273,2]
[370430524,1752016257990,-151.0,0.00020273,2]
[370430525,1752016258000,-460.0,0.00020273,2]
[370430526,1752016258010,-151.0,0.00020273,2]
[370430527,1752016258020,-460.0,0.00020273,2]
[370430528,1752016258029,-460.0,0.00020273,2]
[370430529,1752016258039,-460.0,0.00020273,2]
[370430530,1752016258048,-460.0,0.00020273,2]
[370430531,1752016258057,-613.94,0.00020273,2]
[370430532,1752016258067,-460.0,0.00020273,2]
[370430533,1752016258076,-460.0,0.00020273,2]
[370430534,1752016258086,-1198.17,0.00020273,2]
[370430535,1752016258095,-464.2,0.00020273,2]
[370430536,1752016258104,-460.0,0.00020273,2]
[370430537,1752016258114,-151.0,0.00020273,2]
[370430538,1752016258123,-460.0,0.00020273,2]
[370430539,1752016258132,-460.0,0.00020273,2]
[370430540,1752016258142,-460.0,0.00020273,2]
[370430541,1752016258151,-460.0,0.00020273,2]
[370430542,1752016258160,-876.27,0.00020273,2]
[370430543,1752016258170,-698.91,0.00020273,2]
[370430544,1752016258179,-460.0,0.00020273,2]
[370430545,1752016258189,-460.0,0.00020273,2]
[370430546,1752016258198,-3546.81,0.00020273,2]
[370430547,1752016258208,-2160.36,0.00020273,2]
[370430548,1752016258217,-460.0,0.00020273,2]
[370430549,1752016258226,-460.0,0.00020273,2]
[370430550,1752016258236,-460.0,0.00020273,2]
[370430551,1752016258245,-460.0,0.00020273,2]
[370430552,1752016258254,-460.0,0.00020273,2]
[370430553,1752016258264,-460.0,0.00020273,2]
[370430554,1752016258273,-460.0,0.00020273,2]
[370430555,1752016258282,-562.12,0.00020273,2]
[370430556,1752016258292,-1820.93,0.00020273,2]
[370430557,1752016258302,-2481.76,0.00020273,2]
[370430558,1752016258312,-801.89,0.00020273,2]
[370430559,1752016258324,-660.88,0.00020273,2]
[370430560,1752016258333,-780.51,0.00020273,2]
[370430561,1752016258342,-926.47,0.00020273,2]
[370430562,1752016258351,-460.0,0.00020273,2]
[370430563,1752016258361,-464.68187714,0.00020273,2]
[370430564,1752016258370,-487.54,0.00020273,2]
[370430565,1752016258379,-460.0,0.00020273,2]
[370430566,1752016258390,-460.0,0.00020273,2]
[370430567,1752016258400,-460.0,0.00020273,2]
[370430568,1752016258409,-154.516584,0.00020273,2]
[370430569,1752016258418,-460.0,0.00020273,2]
[370430570,1752016258428,-460.0,0.00020273,2]
[370430571,1752016258438,-460.0,0.00020273,2]
[370430572,1752016258447,-460.0,0.00020273,2]
[370430573,1752016258456,-460.0,0.00020273,2]
[370430574,1752016258466,-460.0,0.00020273,2]
[370430575,1752016258475,-460.0,0.00020273,2]
[370430576,1752016258485,-460.0,0.00020273,2]
[370430577,1752016258494,-1249.85,0.00020273,2]
[370430578,1752016258504,-540.0,0.00020273,2]
[370430579,1752016258514,-460.0,0.00020273,2]
[370430580,1752016258524,-654.86,0.00020273,2]
[370430581,1752016258533,-1707.37,0.00020273,2]
[370430582,1752016258543,-460.0,0.00020273,2]
[370430583,1752016258552,-460.0,0.00020273,2]
[370430584,1752016258561,-460.0,0.00020273,2]
[370430585,1752016258571,-460.0,0.00020273,2]
[370430586,1752016258580,-460.0,0.00020273,2]
[370430587,1752016258589,-671.3,0.00020273,2]
[370430588,1752016258599,-460.0,0.00020273,2]
[370430589,1752016258608,-460.0,0.00020273,2]
[370430590,1752016258618,-460.0,0.00020273,2]
[370430591,1752016258628,-1353.97,0.00020273,2]
[370430592,1752016258637,-460.0,0.00020273,2]
[370430593,1752016258646,-460.0,0.00020273,2]
[370430594,1752016258656,-460.0,0.00020273,2]
[370430595,1752016258666,-460.0,0.00020273,2]
[370430596,1752016258675,-460.0,0.00020273,2]
[370430597,1752016258685,-460.0,0.00020273,2]
[370430598,1752016258694,-460.0,0.00020273,2]
[370430599,1752016258703,-460.0,0.00020273,2]
[370430600,1752016258712,-1191.42,0.00020273,2]
[370430601,1752016258722,-460.0,0.00020273,2]
[370430602,1752016258731,-460.0,0.00020273,2]
[370430603,1752016258740,-460.0,0.00020273,2]
[370430604,1752016258750,-462.56,0.00020273,2]
[370430605,1752016258759,-558.02,0.00020273,2]
[370430606,1752016258769,-460.0,0.00020273,2]
[370430607,1752016258779,-460.0,0.00020273,2]
[370430608,1752016258788,-460.0,0.00020273,2]
[370430609,1752016258797,-460.0,0.00020273,2]
[370430610,1752016258807,-460.0,0.00020273,2]
[370430611,1752016258817,-460.0,0.00020273,2]
[370430612,1752016258826,-460.0,0.00020273,2]
[370430613,1752016258836,-460.0,0.00020273,2]
[370430614,1752016258846,-541.60539409,0.00020273,2]
[370430615,1752016258855,-460.0,0.00020273,2]
[370430616,1752016258864,-5113.51077367,0.00020314,3]
[370430617,1752016258874,-151.0,0.00020314,2]
[370430618,1752016258883,-757.590677,0.00020314,2]
[370430619,1752016258893,-757.590677,0.00020314,2]
[370430620,1752016258902,-172.494114,0.00020314,2]
[370430621,1752016258911,-172.494114,0.00020314,2]
[370430622,1752016258921,-25000.0,0.00020314,2]
[370430623,1752016258931,-177.7959578,0.00020384,2]
[370430624,1752016258940,-306.0,0.00020384,2]
[370430625,1752016258950,-159.4673789,0.00020384,2]
[370430626,1752016258959,-177.7959578,0.00020384,2]
[370430627,1752016258968,-172.9957753,0.00020384,2]
[370430628,1752016258977,-715.419,0.00020384,2]
[370430629,1752016258987,-725.0,0.000204,2]
[370430630,1752016258996,-274.592,0.00020411,2]
[370430631,1752016259005,-967.0,0.00020411,2]
[370430632,1752016259014,-646.0,0.00020411,2]
[370430633,1752016259024,-2151.0,0.00020411,2]
[370430634,1752016259033,-407.0,0.00020411,2]
[370430635,1752016259042,-151.0,0.00020411,2]
[370430636,1752016259051,-725.0,0.00020488,2]
[370430637,1752016259060,-151.0,0.00020493,2]
[370430638,1752016259070,-1000.0,0.00020493,2]
[370430639,1752016259079,-428.6046964,0.00020521,2]
[370430640,1752016259183,-428.6046964,0.00020521,2]
[370430641,1752016259192,-428.6046964,0.00020521,2]
[370430642,1752016259202,-428.6046964,0.00020521,2]
[370430643,1752016259211,-428.6046964,0.00020521,2]
[370430644,1752016259220,-428.6046964,0.00020521,2]
[370430645,1752016259229,-5113.51077367,0.00020521,3]
[370430646,1752016259239,-201.99690245,0.00020521,2]
[370430647,1752016259249,-151.0,0.00020521,2]
[370430648,1752016259258,-151.0,0.00020521,2]
[370430649,1752016259267,-151.0,0.00020521,2]
[370430650,1752016259277,-151.0,0.00020521,2]
[370430651,1752016259286,-151.0,0.00020521,2]
[370430652,1752016259296,-151.0,0.00020521,2]
[370430653,1752016259306,-151.0,0.00020521,2]
[370430654,1752016259316,-245.11139049,0.00020521,2]
[370430655,1752016259326,-500.0,0.00020521,2]
[370430656,1752016259335,-151.0,0.00020521,2]
[370430657,1752016259344,-151.0,0.00020521,2]
[370430658,1752016259354,-500.0,0.00020521,2]
[370430659,1752016259363,-151.0,0.00020521,2]
[370430660,1752016259372,-151.0,0.00020521,2]
[370430661,1752016259382,-151.0,0.00020521,2]
[370430662,1752016259391,-151.0,0.00020521,2]
[370430663,1752016259402,-500.0,0.00020521,2]
[370430664,1752016259413,-500.0,0.00020521,2]
[370430665,1752016259422,-151.0,0.00020521,2]
[370430666,1752016259432,-151.0,0.00020521,2]
[370430667,1752016259441,-151.0,0.00020521,2]
[370430668,1752016259451,-151.0,0.00020521,2]
[370430669,1752016259460,-151.0,0.00020521,2]
[370430670,1752016259469,-151.59975329,0.00020521,2]
[370430671,1752016259479,-151.0,0.00020521,2]
[370430672,1752016259488,-151.0,0.00020521,2]
[370430673,1752016259497,-151.0,0.00020521,2]
[370430674,1752016259507,-151.0,0.00020521,2]
[370430675,1752016259517,-500.0,0.00020521,2]
[370430676,1752016259526,-157.0,0.00020523,2]
[370430677,1752016259536,-157.0,0.00020523,2]
[370430678,1752016259546,-161.76160232,0.00020523,2]
[370430679,1752016259555,-460.0,0.00020547,2]
[370430680,1752016259564,-460.0,0.00020547,2]
[370430681,1752016259573,-151.0,0.00020547,2]
[370430682,1752016259583,-151.0,0.00020547,2]
[370430683,1752016259592,-460.0,0.00020547,2]
[370430684,1752016259602,-206.72417044,0.00020547,2]
[370430685,1752016259611,-332.94815065,0.00020547,2]
[370430686,1752016259620,-460.0,0.00020547,2]